fUSD/lending_fUSD_20251120
["ID","MTS","AMOUNT","RATE_DAILY","PERIOD"]
[394540601,1763677269595,151.0,0.00041925,120]
[394540602,1763677269643,151.0,0.00041925,120]
[394540603,1763677269808,215.0738,0.00041925,30]
[394540604,1763677269898,500.0,0.00041925,120]
[394540605,1763677270058,250.0,0.00041925,120]
[394540606,1763677270224,151.0,0.00041925,120]
[394540607,1763677270276,151.0,0.00041925,120]
[394540608,1763677270435,223.0315306,0.00041925,30]
[394540609,1763677270696,250.0,0.00041925,120]
[394540610,1763677270791,500.0,0.00041925,120]
[394540611,1763677270844,151.0,0.00041925,120]
[394540612,1763677270896,151.0,0.00041925,120]
[394540613,1763677271083,231.28369723,0.00041925,30]
[394540614,1763677271322,250.0,0.00041925,120]
[394540615,1763677271420,151.0,0.00041925,120]
[394540616,1763677271470,500.0,0.00041925,120]
[394540617,1763677271684,239.84119403,0.00041925,30]
[394540618,1763677271944,250.0,0.00041925,120]
[394540619,1763677272217,500.0,0.00041925,120]
[394540620,1763677272446,248.71531821,0.00041925,30]
[394540621,1763677272562,250.0,0.00041925,120]
[394540622,1763677272711,500.0,0.00041925,120]
[394540623,1763677272918,257.91778498,0.00041925,30]
[394540624,1763677273243,250.0,0.00041925,120]
[394540625,1763677273430,500.0,0.00041925,120]
[394540626,1763677273559,267.46074303,0.00041925,30]
[394540627,1763677273843,250.0,0.00041925,120]
[394540628,1763677274036,500.0,0.00041925,120]
[394540629,1763677274157,267.46074303,0.00041925,30]
[394540630,1763677274520,250.0,0.00041925,120]
[394540631,1763677274631,151.0,0.00041925,50]
[394540632,1763677274913,151.0,0.00041925,50]
[394540633,1763677274966,500.0,0.00041925,120]
[394540634,1763677275394,250.0,0.00041925,120]
[394540635,1763677275566,500.0,0.00041925,120]
[394540636,1763677275616,520.0,0.00041925,120]
[394540637,1763677276031,250.0,0.00041925,120]
[394540638,1763677276170,500.0,0.00041925,120]
[394540639,1763677276228,539.24,0.00041925,120]
[394540640,1763677276795,500.0,0.00041925,120]
[394540641,1763677276845,559.19188,0.00041925,120]
[394540642,1763677277409,151.0,0.00041925,120]
[394540643,1763677277464,500.0,0.00041925,120]
[394540644,1763677277519,579.88197956,0.00041925,120]
[394540645,1763677278035,151.0,0.00041925,120]
[394540646,1763677278083,601.3376128,0.00041925,120]
[394540647,1763677278835,623.58710448,0.00041925,120]
[394540648,1763677279129,151.0,0.00041925,120]
[394540649,1763677279450,623.58710448,0.00041925,120]
[394540650,1763677279765,151.0,0.00041925,120]
[394540651,1763677280470,151.0,0.00041925,120]
[394540652,1763677281156,151.0,0.00041925,120]
[394540653,1763677281548,151.0,0.00041925,50]
[394540654,1763677281808,151.0,0.00041925,120]
[394540655,1763677281875,151.0,0.00041925,50]
[394540656,1763677282472,151.0,0.00041925,120]
[394540657,1763677283046,151.0,0.00041925,50]
[394540658,1763677283329,151.0,0.00041925,50]
[394540659,1763677283462,250.0,0.00041925,120]
[394540660,1763677283649,151.0,0.00041925,50]
[394540661,1763677284101,151.0,0.00041925,50]
[394540662,1763677284168,250.0,0.00041925,120]
[394540663,1763677284566,151.0,0.00041925,50]
[394540664,1763677284700,250.0,0.00041925,120]
[394540665,1763677284854,151.0,0.00041925,50]
[394540666,1763677285149,151.0,0.00041925,50]
[394540667,1763677285327,250.0,0.00041925,120]
[394540668,1763677285498,151.0,0.00041925,50]
[394540669,1763677285782,151.0,0.00041925,50]
[394540670,1763677285929,250.0,0.00041925,120]
[394540671,1763677286058,151.0,0.00041925,50]
[394540672,1763677286348,151.0,0.00041925,50]
[394540673,1763677286574,250.0,0.00041925,120]
[394540674,1763677286626,151.0,0.00041925,50]
[394540675,1763677286914,217.14236,0.00041925,50]
[394540676,1763677287261,250.0,0.00041925,120]
[394540678,1763677287953,250.0,0.00041925,120]
[394540681,1763677288423,500.0,0.00041925,120]
[394540682,1763677288575,250.0,0.00041925,120]
[394540683,1763677289059,500.0,0.00041925,120]
[394540684,1763677289305,250.0,0.00041925,120]
[394540685,1763677289707,500.0,0.00041925,120]
[394540686,1763677289922,250.0,0.00041925,120]
[394540688,1763677290334,500.0,0.00041925,120]
[394540690,1763677291008,500.0,0.00041925,120]
[394540693,1763677291684,500.0,0.00041925,120]
[394540694,1763677292306,500.0,0.00041925,120]
[394540695,1763677292942,500.0,0.00041925,120]
[394540696,1763677293551,500.0,0.00041925,120]
[394540697,1763677293725,220.0,0.00041925,120]
[394540698,1763677294209,500.0,0.00041925,120]
[394540699,1763677294361,220.0,0.00041925,120]
[394540700,1763677294832,500.0,0.00041925,120]
[394540701,1763677294984,220.0,0.00041925,120]
[394540702,1763677295467,500.0,0.00041925,120]
[394540703,1763677296072,500.0,0.00041925,120]
[394540704,1763677296694,500.0,0.00041925,120]
[394540705,1763677297323,500.0,0.00041925,120]
[394540706,1763677297934,500.0,0.00041925,120]
[394540707,1763677298541,500.0,0.00041925,120]
[394540708,1763677298641,500.0,0.00041925,120]
[394540709,1763677299155,500.0,0.00041925,120]
[394540710,1763677299255,500.0,0.00041925,120]
[394540711,1763677299846,500.0,0.00041925,120]
[394540712,1763677299936,500.0,0.00041925,120]
[394540713,1763677300453,500.0,0.00041925,120]
[394540714,1763677300596,500.0,0.00041925,120]
[394540715,1763677301178,500.0,0.00041925,120]
[394540716,1763677301820,500.0,0.00041925,120]
[394540717,1763677302475,500.0,0.00041925,120]
[394540718,1763677303127,500.0,0.00041925,120]
[394540719,1763677303612,250.0,0.00041925,120]
[394540720,1763677303799,500.0,0.00041925,120]
[394540721,1763677304246,250.0,0.00041925,120]
[394540722,1763677304420,500.0,0.00041925,120]
[394540723,1763677304894,250.0,0.00041925,120]
[394540724,1763677305015,500.0,0.00041925,120]
[394540725,1763677305534,250.0,0.00041925,120]
[394540726,1763677305640,500.0,0.00041925,120]
[394540727,1763677306166,250.0,0.00041925,120]
[394540728,1763677306255,500.0,0.00041925,120]
[394540729,1763677306826,250.0,0.00041925,120]
[394540730,1763677306877,500.0,0.00041925,120]
[394540731,1763677307436,250.0,0.00041925,120]
[394540732,1763677307487,500.0,0.00041925,120]
[394540733,1763677308099,500.0,0.00041925,120]
[394540734,1763677308538,250.0,0.00041925,120]
[394540735,1763677308701,500.0,0.00041925,120]
[394540736,1763677309174,250.0,0.00041925,120]
[394540737,1763677309326,500.0,0.00041925,120]
[394540738,1763677309793,250.0,0.00041925,120]
[394540739,1763677309936,500.0,0.00041925,120]
[394540740,1763677310457,250.0,0.00041925,120]
[394540741,1763677310578,500.0,0.00041925,120]
[394540742,1763677313758,500.0,0.00041925,120]
[394540743,1763677315496,500.0,0.00041925,120]
[394540744,1763677315833,250.0,0.00041925,120]
[394540745,1763677316141,500.0,0.00041925,120]
[394540746,1763677316518,250.0,0.00041925,120]
[394540747,1763677316787,500.0,0.00041925,120]
[394540748,1763677317124,250.0,0.00041925,120]
[394540749,1763677317419,500.0,0.00041925,120]
[394540750,1763677317738,250.0,0.00041925,120]
[394540751,1763677318035,500.0,0.00041925,120]
[394540752,1763677318362,250.0,0.00041925,120]
[394540753,1763677318648,500.0,0.00041925,120]
[394540754,1763677318966,250.0,0.00041925,120]
[394540755,1763677319259,500.0,0.00041925,120]
[394540756,1763677319897,500.0,0.00041925,120]
[394540757,1763677320352,250.0,0.00041925,120]
[394540758,1763677320498,500.0,0.00041925,120]
[394540759,1763677321144,500.0,0.00041925,120]
[394540760,1763677321458,250.0,0.00041925,120]
[394540761,1763677321856,500.0,0.00041925,120]
[394540762,1763677322098,250.0,0.00041925,120]
[394540763,1763677322714,500.0,0.00041925,120]
[394540765,1763677322763,250.0,0.00041925,120]
[394540768,1763677323335,500.0,0.00041925,120]
[394540769,1763677323391,250.0,0.00041925,120]
[394540772,1763677323955,500.0,0.00041925,120]
[394540773,1763677324007,250.0,0.00041925,120]
[394540776,1763677324580,500.0,0.00041925,120]
[394540777,1763677324636,250.0,0.00041925,120]
[394540780,1763677325207,500.0,0.00041925,120]
[394540781,1763677325263,250.0,0.00041925,120]
[394540783,1763677325835,500.0,0.00041925,120]
[394540784,1763677325889,250.0,0.00041925,120]
[394540787,1763677326466,250.0,0.00041925,120]
[394540788,1763677327091,250.0,0.00041925,120]
[394540791,1763677327723,250.0,0.00041925,120]
[394540793,1763677328336,250.0,0.00041925,120]
[394540794,1763677328938,250.0,0.00041925,120]
[394540795,1763677329063,500.0,0.00041925,120]
[394540796,1763677337965,151.0,0.00041925,50]
[394540797,1763677338248,151.0,0.00041925,50]
[394540798,1763677338314,300.0,0.00041925,120]
[394540799,1763677338535,151.0,0.00041925,50]
[394540800,1763677338811,151.0,0.00041925,50]
[394540801,1763677338913,311.1,0.00041925,120]
[394540802,1763677339088,151.0,0.00041925,50]
[394540803,1763677339369,151.0,0.00041925,50]
[394540804,1763677339510,311.1,0.00041925,120]
[394540805,1763677339653,151.0,0.00041925,50]
[394540806,1763677339932,151.0,0.00041925,50]
[394540807,1763677340208,151.0,0.00041925,50]
[394540808,1763677340491,151.0,0.00041925,50]
[394540809,1763677340781,151.0,0.00041925,50]
[394540810,1763677341072,151.0,0.00041925,50]
[394540811,1763677341471,275.340628,0.00041925,50]
[394540812,1763677344213,151.0,0.00041925,50]
[394540813,1763677344558,151.0,0.00041925,50]
[394540814,1763677344890,151.0,0.00041925,50]
[394540826,1763677348263,151.0,0.00041925,50]
[394540827,1763677348593,151.0,0.00041925,50]
[394540828,1763677348900,151.0,0.00041925,50]
[394540829,1763677349265,151.0,0.00041925,50]
[394540830,1763677349552,151.0,0.00041925,50]
[394540831,1763677349605,228.315147,0.00041925,30]
[394540832,1763677349867,151.0,0.00041925,50]
[394540833,1763677350158,151.0,0.00041925,50]
[394540863,1763677362076,151.0,0.00041925,50]
[394540864,1763677362421,151.0,0.00041925,50]
[394540865,1763677362712,151.0,0.00041925,50]
[394540866,1763677363008,151.0,0.00041925,50]
[394540868,1763677363284,151.0,0.00041925,50]
[394540869,1763677363567,151.0,0.00041925,50]
[394540870,1763677363857,151.0,0.00041925,50]
[394540871,1763677364138,151.0,0.00041925,50]
[394540872,1763677364713,151.0,0.00041925,50]
[394540873,1763677364787,151.0,0.00041925,50]
[394540874,1763677364987,151.0,0.00041925,50]
[394540875,1763677365274,151.0,0.00041925,50]
[394540876,1763677365638,151.0,0.00041925,50]
[394540877,1763677365925,151.0,0.00041925,50]
[394540878,1763677366201,219.597098,0.00041925,50]
[394540880,1763677385733,500.0,0.00041925,120]
[394540881,1763677385782,151.0,0.00041925,120]
[394540882,1763677385835,250.0,0.00041925,120]
[394540883,1763677386241,500.0,0.00041925,120]
[394540884,1763677386334,151.0,0.00041925,120]
[394540885,1763677386383,500.0,0.00041925,120]
[394540886,1763677386432,250.0,0.00041925,120]
[394540887,1763677386837,500.0,0.00041925,120]
[394540888,1763677386944,500.0,0.00041925,120]
[394540889,1763677387058,250.0,0.00041925,120]
[394540890,1763677387506,500.0,0.00041925,120]
[394540891,1763677387570,500.0,0.00041925,120]
[394540892,1763677387696,250.0,0.00041925,120]
[394540893,1763677388103,500.0,0.00041925,120]
[394540894,1763677388170,500.0,0.00041925,120]
[394540895,1763677388239,151.0,0.00041925,120]
[394540896,1763677388342,250.0,0.00041925,120]
[394540897,1763677388469,200.0,0.00041925,30]
[394540898,1763677388697,500.0,0.00041925,120]
[394540899,1763677388770,500.0,0.00041925,120]
[394540900,1763677388835,151.0,0.00041925,120]
[394540901,1763677388932,250.0,0.00041925,120]
[394540902,1763677389076,207.4,0.00041925,30]
[394540903,1763677389322,500.0,0.00041925,120]
[394540904,1763677389375,500.0,0.00041925,120]
[394540905,1763677389435,151.0,0.00041925,120]
[394540906,1763677389529,250.0,0.00041925,120]
[394540907,1763677389688,215.0738,0.00041925,30]
[394540908,1763677389931,500.0,0.00041925,120]
[394540909,1763677389981,500.0,0.00041925,120]
[394540910,1763677390033,151.0,0.00041925,120]
[394540911,1763677390135,250.0,0.00041925,120]
[394540912,1763677390300,223.0315306,0.00041925,30]
[394540913,1763677390566,500.0,0.00041925,120]
[394540914,1763677390633,151.0,0.00041925,120]
[394540915,1763677390717,151.0,0.00041925,50]
[394540916,1763677390766,250.0,0.00041925,120]
[394540917,1763677390816,250.0,0.00041925,120]
[394540918,1763677390888,231.28369723,0.00041925,30]
[394540919,1763677391000,151.0,0.00041925,50]
[394540920,1763677391146,500.0,0.00041925,120]
[394540921,1763677391194,500.0,0.00041925,120]
[394540922,1763677391243,151.0,0.00041925,120]
[394540923,1763677391302,151.0,0.00041925,50]
[394540924,1763677391410,250.0,0.00041925,120]
[394540925,1763677391512,239.84119403,0.00041925,30]
[394540926,1763677391564,151.0,0.00041925,50]
[394540927,1763677391618,250.0,0.00041925,120]
[394540928,1763677391787,500.0,0.00041925,120]
[394540929,1763677391838,500.0,0.00041925,120]
[394540930,1763677391889,151.0,0.00041925,120]
[394540931,1763677392133,248.71531821,0.00041925,30]
[394540932,1763677392188,250.0,0.00041925,120]
[394540933,1763677392405,500.0,0.00041925,120]
[394540934,1763677392456,500.0,0.00041925,120]
[394540935,1763677392505,151.0,0.00041925,120]
[394540936,1763677392729,257.91778498,0.00041925,30]
[394540937,1763677392799,250.0,0.00041925,120]
[394540938,1763677393013,500.0,0.00041925,120]
[394540939,1763677393062,151.0,0.00041925,120]
[394540940,1763677393330,267.46074303,0.00041925,30]
[394540941,1763677393397,250.0,0.00041925,120]
[394540942,1763677393615,500.0,0.00041925,120]
[394540943,1763677394059,250.0,0.00041925,120]
[394540944,1763677394205,500.0,0.00041925,120]
[394540945,1763677394643,250.0,0.00041925,120]
[394540946,1763677394876,500.0,0.00041925,120]
[394540947,1763677395219,250.0,0.00041925,120]
[394540948,1763677395634,500.0,0.00041925,120]
[394540949,1763677395804,250.0,0.00041925,120]
[394540950,1763677396069,500.0,0.00041925,120]
[394540951,1763677398743,500.0,0.00041925,120]
[394540952,1763677399183,500.0,0.00041925,120]
[394540953,1763677399385,500.0,0.00041925,120]
[394540954,1763677399790,500.0,0.00041925,120]
[394540955,1763677400332,152.44399677,0.00041925,120]
[394540956,1763677402501,151.0,0.00041925,50]
[394540957,1763677402796,151.0,0.00041925,50]
[394540958,1763677402869,300.0,0.00041925,120]
[394540959,1763677403088,151.0,0.00041925,50]
[394540960,1763677403407,151.0,0.00041925,50]
[394540961,1763677403495,311.1,0.00041925,120]
[394540962,1763677403946,500.0,0.00041925,120]
[394540963,1763677404104,322.6107,0.00041925,120]
[394540964,1763677404503,151.0,0.00041925,120]
[394540965,1763677404559,500.0,0.00041925,120]
[394540966,1763677404750,334.5472959,0.00041925,120]
[394540967,1763677405158,151.0,0.00041925,120]
[394540968,1763677405361,346.92554585,0.00041925,120]
[394540969,1763677405927,151.0,0.00041925,120]
[394540970,1763677406136,359.76179104,0.00041925,120]
[394540971,1763677406410,151.0,0.00041925,120]
[394540972,1763677406615,373.07297731,0.00041925,120]
[394540973,1763677407165,151.0,0.00041925,120]
[394540974,1763677407287,386.87667747,0.00041925,120]
[394540975,1763677407774,151.0,0.00041925,120]
[394540976,1763677407938,386.87667747,0.00041925,120]
[394540977,1763677408865,151.0,0.00041925,120]
[394540978,1763677409515,151.0,0.00041925,120]
[394540979,1763677410143,151.0,0.00041925,120]
[394540980,1763677410773,151.0,0.00041925,120]
[394540981,1763677411012,500.0,0.00041925,120]
[394540982,1763677411383,151.0,0.00041925,120]
[394540983,1763677411636,500.0,0.00041925,120]
[394540984,1763677412009,151.0,0.00041925,120]
[394540985,1763677412234,500.0,0.00041925,120]
[394540986,1763677412669,151.0,0.00041925,50]
[394540987,1763677412845,500.0,0.00041925,120]
[394540988,1763677412975,151.0,0.00041925,50]
[394540989,1763677413290,151.0,0.00041925,50]
[394540990,1763677413476,500.0,0.00041925,120]
[394540991,1763677413594,151.0,0.00041925,50]
[394540992,1763677414106,500.0,0.00041925,120]
[394540993,1763677414637,151.0,0.00041925,50]
[394540994,1763677414755,500.0,0.00041925,120]
[394540995,1763677415370,500.0,0.00041925,120]
[394541019,1763677450303,500.0,0.00041925,120]
[394541020,1763677456011,500.0,0.00041925,120]
[394541021,1763677456623,500.0,0.00041925,120]
[394541022,1763677484536,195.73,0.00031507,120]
[394541023,1763677484876,195.73,0.00035445,120]
[394541026,1763677527125,4257175.61463848,0.00041925,30]
[394541027,1763677533252,442.59887864,0.00035616,120]
[394541028,1763677556270,1218.49528579,0.000161,2]
[394541029,1763677564663,1287.13070868,0.00011,2]
[394541035,1763677620687,176.0,0.0003561,120]
[394541058,1763677673022,174.79070181,0.0003,120]
[394541061,1763677684054,573.52621292,0.000315,120]
[394541064,1763677696116,1918.78564613,0.0001,2]
[394541076,1763677707735,2716.95952109,0.0001,2]
[394541081,1763677710960,2261.14264196,0.0001421,7]
[394541083,1763677711985,150.0,0.00015946,2]
[394541085,1763677712283,150.0,0.00015946,120]
[394541087,1763677713411,447.49619635,0.00014999,2]
[394541088,1763677713435,1156.50380365,0.00014999,2]
[394541092,1763677714907,2220.04717683,0.00015807,2]
[394541094,1763677715389,1063.19690891,0.0003,120]
[394541100,1763677717168,1103.0,0.00032,120]
[394541101,1763677718047,150.72212182,0.00032,120]
[394541104,1763677718822,6623.45901952,0.0001,2]
[394541105,1763677718847,1537.55099845,0.0001,2]
[394541106,1763677719138,8462.45900155,0.00015,2]
[394541107,1763677719164,5685.20185252,0.00015,2]
[394541157,1763677765367,500.0,0.00016115,2]
[394541166,1763677831681,-1200.0,0.00016199,2]
[394541167,1763677831692,-150.0,0.000162,2]
[394541168,1763677831701,-150.0,0.000162,2]
[394541169,1763677831711,-150.0,0.000162,2]
[394541170,1763677831720,-311.71343333,0.000162,2]
[394541171,1763677831729,-5000.00224679,0.000162,5]
[394541172,1763677831739,-155.55332735,0.00016215,2]
[394541173,1763677831748,-1000.0,0.00016315,2]
[394541174,1763677831758,-300.0,0.00016364,2]
[394541175,1763677831767,-300.0,0.00016364,2]
[394541176,1763677831779,-280.0,0.00016364,2]
[394541177,1763677831788,-999.0,0.00016365,3]
[394541178,1763677831797,-155.55332734,0.00016394,2]
[394541179,1763677831807,-1852.42,0.00016398,2]
[394541180,1763677831816,-500.0,0.00016438,2]
[394541181,1763677831826,-1873.4101,0.00016536,2]
[394541182,1763677831835,-155.55332734,0.00016573,2]
[394541183,1763677831845,-550.0,0.00016635,2]
[394541184,1763677831854,-24432.46604394,0.00016636,2]
[394541185,1763677831867,-1254.41808677,0.00016636,2]
[394541186,1763677831878,-1659.3532698,0.00016636,2]
[394541187,1763677831889,-3157.84528586,0.00016636,2]
[394541188,1763677831904,-250.0,0.00016636,2]
[394541189,1763677831923,-721.59889273,0.00016636,2]
[394541190,1763677831935,-3773.8207,0.00016636,2]
[394541191,1763677831947,-278.11018108,0.00016636,2]
[394541192,1763677831962,-361.13911631,0.00016636,2]
[394541193,1763677831990,-704.056,0.00016636,2]
[394541205,1763677837683,-605.50146086,0.00016636,2]
[394541206,1763677837695,-895.5214939,0.00016636,2]
[394541207,1763677837707,-1407.98186965,0.00016636,2]
[394541208,1763677837720,-621.90896439,0.00016636,2]
[394541209,1763677837753,-689.32368187,0.00016636,2]
[394541210,1763677837875,-21005.82495284,0.00016636,2]
[394541211,1763677837885,-500.0,0.00016673,2]
[394541212,1763677837894,-432.55947807,0.00016673,2]
[394541213,1763677837904,-324.11537617,0.00016673,2]
[394541214,1763677837918,-550.68,0.000167,2]
[394541215,1763677837928,-191.96,0.00016712,2]
[394541216,1763677837937,-200.0,0.00016747,2]
[394541218,1763677837948,-432.25694276,0.00016763,2]
[394541264,1763677839707,-697.65574683,0.00016763,2]
[394541265,1763677839718,-439.86,0.00016763,2]
[394541268,1763677839894,-370.99058735,0.00016763,2]
[394541270,1763677839909,-1663.21672306,0.00016763,2]
[394541273,1763677839919,-500.0,0.00016767,2]
[394541275,1763677839929,-256.21845577,0.000168,2]
[394541277,1763677839939,-443.45136125,0.00016861,2]
[394541279,1763677839951,-17142.11896989,0.00016862,2]
[394541285,1763677839997,-9.79467455,0.00016862,2]
[394541287,1763677840011,-1718.19789974,0.00016862,2]
[394541328,1763677843771,-45014.55287356,0.00016862,2]
[394541329,1763677843780,-400.47863262,0.00016873,2]
[394541330,1763677843790,-738.0,0.000169,2]
[394541331,1763677843799,-7150.71754669,0.000169,2]
[394541332,1763677843808,-256.21845576,0.00016922,2]
[394541333,1763677843818,-260.87082774,0.00016999,2]
[394541334,1763677843828,-661275.92478628,0.00017,2]
[394541335,1763677843838,-256.21845576,0.00017044,2]
[394541336,1763677843849,-200.0,0.000171,6]
[394541337,1763677843859,-256.21845576,0.00017167,2]
[394541338,1763677843869,-561.77,0.00017178,2]
[394541339,1763677843878,-500.0,0.000172,6]
[394541340,1763677843888,-256.21845576,0.00017289,2]
[394541341,1763677843898,-700.0,0.000173,6]
[394541342,1763677843913,-388.2616,0.00017321,2]
[394541343,1763677843924,-150.21,0.00017342,2]
[394541344,1763677843936,-150.0,0.00017342,2]
[394541345,1763677843947,-150.0,0.00017342,2]
[394541346,1763677843955,-150.0,0.00017342,2]
[394541347,1763677843965,-150.0,0.00017342,2]
[394541348,1763677843974,-430.42,0.00017342,2]
[394541349,1763677843985,-300.0,0.00017342,2]
[394541350,1763677843995,-150.0,0.00017342,2]
[394541351,1763677844006,-150.0,0.00017342,2]
[394541352,1763677844015,-150.0,0.00017342,2]
[394541353,1763677844024,-150.0,0.00017342,2]
[394541354,1763677844034,-300.0,0.00017342,2]
[394541355,1763677844044,-198.42,0.00017342,2]
[394541356,1763677844054,-152.33,0.00017342,2]
[394541357,1763677844063,-177.5,0.00017342,2]
[394541358,1763677844073,-1000.0,0.000174,6]
[394541359,1763677844082,-256.21845576,0.00017411,2]
[394541360,1763677844091,-822.0,0.00017421,2]
[394541361,1763677844100,-1600.0,0.00017421,2]
[394541362,1763677844110,-794.0,0.00017421,2]
[394541363,1763677844119,-1256.0,0.00017421,2]
[394541364,1763677844128,-907.0,0.00017421,2]
[394541365,1763677844138,-1191.0,0.00017421,2]
[394541366,1763677844148,-609.0,0.00017421,2]
[394541367,1763677844157,-1605.0,0.00017421,2]
[394541369,1763677844167,-705.0,0.00017421,2]
[394541370,1763677844176,-575.0,0.00017421,2]
[394541371,1763677844186,-1200.0,0.000175,6]
[394541372,1763677844196,-29056.31904208,0.00017513,2]
[394541373,1763677844205,-256.21845576,0.00017533,2]
[394541374,1763677844215,-172.0,0.0001755,2]
[394541375,1763677844224,-218.89,0.000176,2]
[394541376,1763677844234,-200.0,0.000176,6]
[394541377,1763677844243,-715.0,0.00017646,2]
[394541378,1763677844253,-256.21845576,0.00017656,2]
[394541379,1763677844263,-200.0,0.000177,6]
[394541380,1763677844272,-1008.55740202,0.00017702,2]
[394541381,1763677844282,-874.47038709,0.00017704,2]
[394541382,1763677844291,-150.99,0.00017728,2]
[394541383,1763677844301,-299.99,0.00017728,4]
[394541384,1763677844311,-6549.91,0.00017728,2]
[394541385,1763677844330,-256.21845576,0.00017778,2]
[394541386,1763677844343,-1000.0,0.00017795,2]
[394541387,1763677844353,-1680.0,0.00017796,2]
[394541388,1763677844364,-200.0,0.000178,6]
[394541389,1763677844374,-250.0,0.0001782,2]
[394541390,1763677844384,-250.0,0.0001782,2]
[394541391,1763677844395,-1635.89367064,0.00017827,2]
[394541392,1763677844405,-420.0,0.00017884,2]
[394541393,1763677844415,-5244.6035,0.000179,2]
[394541394,1763677844425,-256.21845576,0.000179,2]
[394541395,1763677844436,-200.0,0.000179,6]
[394541396,1763677844445,-3398.02810644,0.00017917,2]
[394541397,1763677844456,-901.1667254,0.00017965,2]
[394541398,1763677844466,-14719.4865855,0.00017967,2]
[394541399,1763677844476,-5484.6382827,0.00017967,2]
[394541400,1763677844486,-172.0,0.00017983,2]
[394541401,1763677844497,-1556.0,0.00018,2]
[394541402,1763677844507,-68010.95125822,0.00018,2]
[394541426,1763677846226,-8003.18526876,0.00018,2]
[394541428,1763677846238,-67121.94203858,0.00018,2]
[394541493,1763677863886,1598.18,0.00015963,2]
[394541494,1763677921162,1600.0,0.00015963,2]
[394541496,1763677951871,1211.0,0.00035439,120]
[394541497,1763677975981,1470.0,0.00035616,120]
[394541499,1763678032726,616.62814748,0.00015963,2]
[394541500,1763678032749,4996.57185252,0.00015963,2]
[394541503,1763678046052,-5000000.0,0.00041925,30]
[394541504,1763678048362,3518.105915,7.945e-05,2]
[394541505,1763678050776,-5000000.0,0.00041925,30]
[394541506,1763678065379,-4463457.04252981,0.00041925,30]
[394541507,1763678065441,-1433.19158869,0.00041925,30]
[394541508,1763678065503,-1218.7474129,0.00041925,30]
[394541509,1763678065567,-1014.64782725,0.00041925,30]
[394541510,1763678065631,-1004.47855441,0.00041925,30]